[Event "DEN-ch LH 2020"]
[Site "Svendborg"]
[Date "2020.10.09"]
[Round "1.1"]
[White "Hansen, Sune Berg"]
[Black "Bjerre, Jonas Buhl"]
[Result "1-0"]
[ECO "A45"]
[WhiteElo "2557"]
[BlackElo "2559"]
[Annotator "ChessBase"]
[PlyCount "79"]
[EventDate "2020.10.09"]
[EventType "tourn"]
[EventCountry "DEN"]
[SourceTitle "playchess.com"]
[Source "ChessBase"]
[SourceQuality "1"]
[TimeControl "40/5400+30:1800+30"]

1. d4 {[%emt 0:00:00]} Nf6 {[%emt 0:00:00]} 2. Bf4 {[%emt 0:01:18]} d5 {[%emt 0:01:26]} 3. e3 {[%emt 0:01:12]} e6 {[%emt 0:00:55]} 4. Nd2 {[%emt 0:04:16]} Bd6 {[%emt 0:01:33]} 5. Bg3 {[%emt 0:01:51]} O-O {[%emt 0:02:57]} 6. Bd3 {[%emt 0:04:44]} b6 {[%emt 0:01:50]} 7. Qe2 {[%emt 0:01:53]} c5 {[%emt 0:03:08]} 8. c3 {[%emt 0:00:12]} Bb7 {[%emt 0:06:13]} 9. Ngf3 {[%emt 0:03:32]} Nc6 {[%emt 0:02:34]} 10. Rd1 {[%emt 0:00:28]} Re8 {[%emt 0:06:44]} 11. e4 {[%emt 0:00:36]} Be7 {[%emt 0:05:31]} 12. e5 {[%emt 0:00:24]} Nh5 {[%emt 0:03:28]} 13. a3 {[%emt 0:02:00]} a5 {[%emt 0:03:29]} 14. Nf1 {[%emt 0:00:11]} g6 {[%emt 0:03:41]} 15. Ne3 {[%emt 0:00:48]} a4 {[%emt 0:07:07]} 16. Ng4 {[%emt 0:04:19]} Na5 {[%emt 0:07:27]} 17. O-O {[%emt 0:12:18]} Rc8 {[%emt 0:03:21]} 18. Rfe1 {[%emt 0:15:43]} Kh8 {[%emt 0:03:01]} 19. dxc5 {[%emt 0:04:05]} bxc5 {[%emt 0:01:31]} 20. Qe3 {[%emt 0:03:59]} Bc6 {[%emt 0:03:58]} 21. Bf4 {[%emt 0:05:07]} Nb3 {[%emt 0:04:10]} 22. Bh6 {[%emt 0:02:12]} d4 {[%emt 0:01:37]} 23. cxd4 {[%emt 0:05:52]} cxd4 {[%emt 0:00:25]} 24. Qe2 {[%emt 0:00:35]} Rc7 {[%emt 0:05:00]} 25. Bb5 {[%emt 0:03:37]} Bxb5 {[%emt 0:03:59]} 26. Qxb5 {[%emt 0:00:03]} Qd7 {[%emt 0:00:23]} 27. Qd3 {[%emt 0:01:40]} Rd8 {[%emt 0:00:46]} 28. Ng5 {[%emt 0:01:26]} Bf8 {[%emt 0:02:06]} 29. Bxf8 {[%emt 0:05:41]} Rxf8 {[%emt 0:00:04]} 30. Qh3 {[%emt 0:00:52]} Qb5 {[%emt 0:03:46]} 31. Nf6 {[%emt 0:01:38]} Rg8 {[%emt 0:08:46]} 32. Nxg8 {[%emt 0:01:49]} Kxg8 {[%emt 0:00:05]} 33. g4 {[%emt 0:01:18]} Nf6 {[%emt 0:01:15]} 34. Qh6 {[%emt 0:02:22]} Nd5 {[%emt 0:02:36]} 35. Nxh7 {[%emt 0:01:52]} Qe8 {[%emt 0:01:35]} 36. Nf6+ {[%emt 0:01:32]} Nxf6 {[%emt 0:00:05]} 37. exf6 {[%emt 0:00:09]} Qf8 {[%emt 0:00:07]} 38. Qh4 {[%emt 0:01:14]} Qa8 {[%emt 0:01:12]} 39. Rd3 {[%emt 0:01:22]} Nc1 {[%emt 0:01:08]} 40. Qh6 {[%emt 0:00:17]} 1-0

[Event "DEN-ch LH 2020"]
[Site "Svendborg"]
[Date "2020.10.09"]
[Round "1.2"]
[White "Rasmussen, Allan Stig"]
[Black "Fries-Nielsen, Jens Ove"]
[Result "1-0"]
[ECO "C60"]
[WhiteElo "2559"]
[BlackElo "2380"]
[Annotator "ChessBase"]
[PlyCount "47"]
[EventDate "2020.10.09"]
[EventType "tourn"]
[EventCountry "DEN"]
[SourceTitle "playchess.com"]
[Source "ChessBase"]
[SourceQuality "1"]
[TimeControl "40/5400+30:1800+30"]

1. e4 {[%emt 0:00:00]} e5 {[%emt 0:00:30]} 2. Nf3 {[%emt 0:00:00]} Nc6 {[%emt 0:00:30]} 3. Bb5 {[%emt 0:00:18]} Nge7 {[%emt 0:00:54]} 4. c3 {[%emt 0:02:11]} g6 {[%emt 0:04:26]} 5. d4 {[%emt 0:01:15]} exd4 {[%emt 0:00:34]} 6. cxd4 {[%emt 0:00:15]} Bg7 {[%emt 0:00:25]} 7. O-O {[%emt 0:11:43]} O-O {[%emt 0:03:58]} 8. Nc3 {[%emt 0:01:43]} a6 {[%emt 0:01:35]} 9. Ba4 {[%emt 0:02:00]} b5 {[%emt 0:06:19]} 10. Bc2 {[%emt 0:03:37]} d6 {[%emt 0:06:11]} 11. h3 {[%emt 0:02:48]} h6 {[%emt 0:20:33]} 12. Re1 {[%emt 0:08:55]} Bb7 {[%emt 0:04:47]} 13. Bf4 {[%emt 0:09:40]} Na5 {[%emt 0:02:20]} 14. Rc1 {[%emt 0:05:51]} Nc4 {[%emt 0:02:52]} 15. b3 {[%emt 0:00:50]} Nb6 {[%emt 0:00:12]} 16. Qd2 {[%emt 0:15:55]} g5 {[%emt 0:01:33]} 17. Be3 {[%emt 0:01:57]} f5 {[%emt 0:02:29]} 18. d5 {[%emt 0:06:38]} fxe4 {[%emt 0:06:33]} 19. Bxe4 {[%emt 0:01:09]} b4 {[%emt 0:04:47]} 20. Ne2 {[%emt 0:06:32]} Nbxd5 {[%emt 0:00:55]} 21. Bd4 {[%emt 0:00:57]} Rf7 {[%emt 0:22:42]} 22. Bxg7 {[%emt 0:01:00]} Rxg7 {[%emt 0:00:52]} 23. Ned4 {[%emt 0:00:39]} Qd7 {[%emt 0:03:54]} 24. Nf5 {[%emt 0:03:37]} 1-0

[Event "DEN-ch LH 2020"]
[Site "Svendborg"]
[Date "2020.10.09"]
[Round "1.3"]
[White "Thybo, Jesper Sondergaard"]
[Black "Chatalbashev, Boris"]
[Result "0-1"]
[ECO "B00"]
[WhiteElo "2573"]
[BlackElo "2522"]
[Annotator "ChessBase"]
[PlyCount "62"]
[EventDate "2020.10.09"]
[EventType "tourn"]
[EventCountry "DEN"]
[SourceTitle "playchess.com"]
[Source "ChessBase"]
[SourceQuality "1"]
[TimeControl "40/5400+30:1800+30"]

1. e4 {[%emt 0:00:00]} d6 {[%emt 0:00:00]} 2. d4 {[%emt 0:00:00]} Nf6 {[%emt 0:00:00]} 3. f3 {[%emt 0:00:01]} c5 {[%emt 0:01:18]} 4. d5 {[%emt 0:00:19]} e6 {[%emt 0:00:40]} 5. c4 {[%emt 0:00:18]} exd5 {[%emt 0:02:37]} 6. cxd5 {[%emt 0:00:18]} Be7 {[%emt 0:00:14]} 7. Nc3 {[%emt 0:12:20]} O-O {[%emt 0:00:07]} 8. Bd3 {[%emt 0:02:12]} Nbd7 {[%emt 0:04:31]} 9. Nge2 {[%emt 0:02:25]} a6 {[%emt 0:05:41]} 10. a4 {[%emt 0:03:13]} Rb8 {[%emt 0:05:54]} 11. O-O {[%emt 0:04:28]} Ne5 {[%emt 0:00:42]} 12. Bc2 {[%emt 0:03:42]} b5 {[%emt 0:00:33]} 13. f4 {[%emt 0:03:19]} Ng6 {[%emt 0:10:43]} 14. axb5 {[%emt 0:00:31]} axb5 {[%emt 0:00:05]} 15. e5 {[%emt 0:10:42]} Ne8 {[%emt 0:26:21]} 16. e6 {[%emt 0:08:34]} f5 {[%emt 0:00:30]} 17. g4 {[%emt 0:07:51]} b4 {[%emt 0:02:01]} 18. Bxf5 {[%emt 0:10:22]} bxc3 {[%emt 0:00:27]} 19. bxc3 {[%emt 0:00:39]} c4 {[%emt 0:16:27]} 20. Be3 {[%emt 0:15:28]} Bb7 {[%emt 0:01:52]} 21. Ra7 {[%emt 0:03:34]} Nf6 {[%emt 0:07:15]} 22. Bf2 {[%emt 0:00:15]} Qc8 {[%emt 0:01:23]} 23. Qd2 {[%emt 0:09:03]} Nxd5 {[%emt 0:04:58]} 24. Rb1 {[%emt 0:00:24]} Bc6 {[%emt 0:01:35]} 25. Rba1 {[%emt 0:00:39]} Nc7 {[%emt 0:02:42]} 26. Nd4 {[%emt 0:00:28]} Bd5 {[%emt 0:00:02]} 27. Nc2 {[%emt 0:00:59]} Rb7 {[%emt 0:01:37]} 28. Rxb7 {[%emt 0:01:09]} Bxb7 {[%emt 0:00:43]} 29. h4 {[%emt 0:00:44]} Bxh4 {[%emt 0:01:44]} 30. e7 {[%emt 0:00:30]} Rxf5 {[%emt 0:00:17]} 31. gxf5 {[%emt 0:00:16]} Qxf5 {[%emt 0:00:17]} 0-1

[Event "DEN-ch LH 2020"]
[Site "Svendborg"]
[Date "2020.10.09"]
[Round "1.4"]
[White "Andersen, Mads"]
[Black "Ochsner, Bjorn Moller"]
[Result "1/2-1/2"]
[ECO "A21"]
[WhiteElo "2577"]
[BlackElo "2482"]
[Annotator "ChessBase"]
[PlyCount "110"]
[EventDate "2020.10.09"]
[EventType "tourn"]
[EventCountry "DEN"]
[SourceTitle "playchess.com"]
[Source "ChessBase"]
[SourceQuality "1"]
[TimeControl "40/5400+30:1800+30"]

1. c4 {[%emt 0:00:00]} e5 {[%emt 0:00:18]} 2. Nc3 {[%emt 0:00:09]} Bb4 {[%emt 0:00:47]} 3. Nd5 {[%emt 0:00:46]} a5 {[%emt 0:00:09]} 4. Nf3 {[%emt 0:00:48]} d6 {[%emt 0:01:26]} 5. a3 {[%emt 0:01:16]} Bc5 {[%emt 0:00:21]} 6. e3 {[%emt 0:00:21]} Nf6 {[%emt 0:00:26]} 7. d4 {[%emt 0:02:45]} Nxd5 {[%emt 0:00:21]} 8. cxd5 {[%emt 0:02:01]} exd4 {[%emt 0:00:28]} 9. exd4 {[%emt 0:00:11]} Bb6 {[%emt 0:00:08]} 10. Bg5 {[%emt 0:00:33]} f6 {[%emt 0:00:19]} 11. Be3 {[%emt 0:00:11]} O-O {[%emt 0:00:31]} 12. Bd3 {[%emt 0:02:07]} f5 {[%emt 0:01:40]} 13. Qc2 {[%emt 0:02:19]} Nd7 {[%emt 0:00:37]} 14. Bxf5 {[%emt 0:14:49]} Nf6 {[%emt 0:00:16]} 15. Bd3 {[%emt 0:07:22]} h6 {[%emt 0:00:53]} 16. Bc4 {[%emt 0:10:28]} Qe8 {[%emt 0:18:15]} 17. O-O-O {[%emt 0:18:02]} Bd7 {[%emt 0:16:48]} 18. h3 {[%emt 0:02:36]} Bb5 {[%emt 0:03:30]} 19. Bb3 {[%emt 0:01:27]} a4 {[%emt 0:04:59]} 20. Ba2 {[%emt 0:00:55]} Qe4 {[%emt 0:07:36]} 21. Nd2 {[%emt 0:22:43]} Qxc2+ {[%emt 0:01:52]} 22. Kxc2 {[%emt 0:00:02]} Be8 {[%emt 0:01:07]} 23. Nc4 {[%emt 0:01:58]} Ba7 {[%emt 0:01:17]} 24. Na5 {[%emt 0:01:18]} Bf7 {[%emt 0:01:46]} 25. Kb1 {[%emt 0:01:53]} Bxd5 {[%emt 0:04:15]} 26. Rc1 {[%emt 0:01:00]} Bxa2+ {[%emt 0:02:35]} 27. Kxa2 {[%emt 0:00:01]} Nd5 {[%emt 0:02:20]} 28. Rhd1 {[%emt 0:01:57]} Rf5 {[%emt 0:04:30]} 29. Nc4 {[%emt 0:00:47]} b5 {[%emt 0:03:38]} 30. Nd2 {[%emt 0:00:54]} Bb6 {[%emt 0:00:41]} 31. Nf3 {[%emt 0:00:46]} Kf7 {[%emt 0:08:45]} 32. Kb1 {[%emt 0:00:21]} Re8 {[%emt 0:01:10]} 33. Rd3 {[%emt 0:00:43]} g5 {[%emt 0:02:45]} 34. Rc2 {[%emt 0:01:44]} Kg6 {[%emt 0:05:47]} 35. Kc1 {[%emt 0:00:26]} Rf7 {[%emt 0:00:42]} 36. b3 {[%emt 0:00:51]} Rfe7 {[%emt 0:01:53]} 37. Bd2 {[%emt 0:00:16]} Ra8 {[%emt 0:01:09]} 38. Be3 {[%emt 0:00:37]} axb3 {[%emt 0:00:37]} 39. Rxb3 {[%emt 0:00:02]} Ra4 {[%emt 0:00:23]} 40. Kd2 {[%emt 0:01:03]} Ba5+ {[%emt 0:02:03]} 41. Ke2 {[%emt 0:13:55]} Rc4 {[%emt 0:07:25]} 42. Rbb2 {[%emt 0:04:32]} c6 {[%emt 0:05:31]} 43. Kd3 {[%emt 0:01:43]} Ra4 {[%emt 0:04:02]} 44. Rxc6 {[%emt 0:03:05]} Rxa3+ {[%emt 0:00:56]} 45. Ke2 {[%emt 0:00:02]} Nc3+ {[%emt 0:06:48]} 46. Rxc3 {[%emt 0:04:11]} Bxc3 {[%emt 0:01:24]} 47. Rxb5 {[%emt 0:00:02]} Ba5 {[%emt 0:01:54]} 48. Rd5 {[%emt 0:00:30]} Bb4 {[%emt 0:02:39]} 49. Rb5 {[%emt 0:00:28]} Ra4 {[%emt 0:00:24]} 50. Rb6 {[%emt 0:01:30]} Kh7 {[%emt 0:00:51]} 51. Kd3 {[%emt 0:01:36]} Rc7 {[%emt 0:02:08]} 52. Ke4 {[%emt 0:00:40]} Ba3 {[%emt 0:01:05]} 53. Kf5 {[%emt 0:01:12]} Re7 {[%emt 0:01:06]} 54. h4 {[%emt 0:02:28]} gxh4 {[%emt 0:00:24]} 55. Nxh4 {[%emt 0:00:27]} Ra8 {[%emt 0:00:50]} 1/2-1/2

[Event "DEN-ch LH 2020"]
[Site "Svendborg"]
[Date "2020.10.09"]
[Round "1.5"]
[White "Brondt, Nicolai Kvist"]
[Black "Haubro, Martin"]
[Result "1/2-1/2"]
[ECO "A80"]
[WhiteElo "2226"]
[BlackElo "2423"]
[Annotator "ChessBase"]
[PlyCount "73"]
[EventDate "2020.10.09"]
[EventType "tourn"]
[EventCountry "DEN"]
[SourceTitle "playchess.com"]
[Source "ChessBase"]
[SourceQuality "1"]
[TimeControl "40/5400+30:1800+30"]

1. d4 {[%emt 0:00:00]} f5 {[%emt 0:00:00]} 2. Nf3 {[%emt 0:00:26]} Nf6 {[%emt 0:00:00]} 3. g3 {[%emt 0:00:13]} g6 {[%emt 0:00:08]} 4. Bg2 {[%emt 0:00:05]} Bg7 {[%emt 0:00:03]} 5. O-O {[%emt 0:00:27]} O-O {[%emt 0:00:04]} 6. Nbd2 {[%emt 0:02:33]} d6 {[%emt 0:12:59]} 7. Re1 {[%emt 0:05:35]} Nc6 {[%emt 0:09:43]} 8. e4 {[%emt 0:14:24]} fxe4 {[%emt 0:02:38]} 9. Nxe4 {[%emt 0:05:51]} Nxe4 {[%emt 0:00:06]} 10. Rxe4 {[%emt 0:00:05]} Bf5 {[%emt 0:00:04]} 11. Re1 {[%emt 0:06:07]} Qd7 {[%emt 0:05:25]} 12. c3 {[%emt 0:04:27]} Kh8 {[%emt 0:03:56]} 13. Bf4 {[%emt 0:05:18]} Rae8 {[%emt 0:14:59]} 14. Qd2 {[%emt 0:07:06]} Nd8 {[%emt 0:04:28]} 15. Bh6 {[%emt 0:02:45]} Bg4 {[%emt 0:06:54]} 16. Bxg7+ {[%emt 0:02:45]} Kxg7 {[%emt 0:00:05]} 17. Re3 {[%emt 0:05:55]} Rf6 {[%emt 0:11:32]} 18. Ng5 {[%emt 0:09:37]} h6 {[%emt 0:03:01]} 19. Ne4 {[%emt 0:00:23]} Rf7 {[%emt 0:00:04]} 20. Rae1 {[%emt 0:01:59]} b6 {[%emt 0:01:44]} 21. f4 {[%emt 0:02:01]} Bh3 {[%emt 0:01:11]} 22. Bh1 {[%emt 0:01:58]} Qb5 {[%emt 0:02:01]} 23. Nf2 {[%emt 0:01:58]} Bc8 {[%emt 0:03:29]} 24. Qe2 {[%emt 0:02:23]} Qxe2 {[%emt 0:00:51]} 25. R3xe2 {[%emt 0:00:13]} e6 {[%emt 0:04:11]} 26. Nd3 {[%emt 0:02:53]} Ba6 {[%emt 0:01:53]} 27. Re3 {[%emt 0:00:10]} Bxd3 {[%emt 0:00:03]} 28. Rxd3 {[%emt 0:00:05]} g5 {[%emt 0:06:03]} 29. fxg5 {[%emt 0:00:32]} hxg5 {[%emt 0:00:05]} 30. Bg2 {[%emt 0:01:17]} Rf6 {[%emt 0:00:35]} 31. Rde3 {[%emt 0:01:07]} Kf7 {[%emt 0:00:53]} 32. Re4 {[%emt 0:01:58]} Kg6 {[%emt 0:01:15]} 33. Bh3 {[%emt 0:02:44]} Re7 {[%emt 0:02:20]} 34. Bg4 {[%emt 0:01:00]} Kh6 {[%emt 0:00:44]} 35. Kg2 {[%emt 0:00:52]} Kg6 {[%emt 0:00:55]} 36. R4e2 {[%emt 0:01:01]} c5 {[%emt 0:00:20]} 37. a3 {[%emt 0:06:37]} 1/2-1/2

[Event "DEN-ch LH 2020"]
[Site "Svendborg"]
[Date "2020.10.13"]
[Round "5.2"]
[White "Brondt, Nicolai Kvist"]
[Black "Thybo, Jesper Sondergaard"]
[Result "1-0"]
[ECO "A40"]
[WhiteElo "2226"]
[BlackElo "2573"]
[Annotator "RC"]
[PlyCount "85"]
[EventDate "2020.10.09"]
[EventType "tourn"]
[EventCountry "DEN"]
[SourceTitle "playchess.com"]
[Source "ChessBase"]
[SourceQuality "1"]
[TimeControl "40/5400+30:1800+30"]

1. d4 {[%emt 0:00:00]} g6 {[%emt 0:00:00]} 2. c4 {[%emt 0:00:00]} Bg7 {[%emt 0:00:00]} 3. Nf3 {[%emt 0:05:14]} d6 {[%emt 0:00:01]} 4. Nc3 {[%emt 0:00:57]} Nd7 {[%emt 0:00:10]} 5. e4 {[%emt 0:03:19]} e5 {[%emt 0:00:28]} 6. Be2 {[%emt 0:02:26]} Ne7 {[%emt 0:00:50]} 7. O-O {[%emt 0:03:24]} O-O {[%emt 0:00:07]} 8. Re1 {[%emt 0:02:16]} h6 {[%emt 0:03:14]} 9. Bf1 {[%emt 0:06:52]} f5 {[%emt 0:04:51]} 10. dxe5 {[%emt 0:11:15]} dxe5 {[%emt 0:00:13]} 11. b3 {[%emt 0:12:00]} b6 {[%emt 0:14:27]} 12. Bb2 {[%emt 0:03:38]} Bb7 {[%emt 0:06:50]} 13. Qe2 {[%emt 0:07:58]} c5 {[%emt 0:07:12]} 14. Nd5 {[%emt 0:04:56]} Nc6 {[%emt 0:00:43]} 15. Rad1 {[%emt 0:01:35]} Rf7 {[%emt 0:05:12]} 16. Rd2 {[%emt 0:02:45]} Rc8 {[%emt 0:08:13]} 17. Red1 {[%emt 0:02:40]} Qe8 {[%emt 0:00:08]} 18. Nh4 {[%emt 0:02:19]} f4 {[%emt 0:23:27]} 19. Qg4 {[%emt 0:04:02]} Nd4 {[%emt 0:06:43]} 20. Qxg6 {[%emt 0:00:35]} Rc6 {[%emt 0:01:12]} 21. Qh5 {[%emt 0:02:02]} Nf6 {[%emt 0:01:43]} 22. Nxf6+ {[%emt 0:00:11]} Rcxf6 {[%emt 0:00:19]} 23. Bd3 {[%emt 0:01:27]} Qc6 {[%emt 0:03:01]} 24. Bxd4 {[%emt 0:02:09]} exd4 {[%emt 0:00:06]} 25. e5 {[%emt 0:01:18]} Re6 {[%emt 0:00:41]} 26. Re1 {[%emt 0:00:50]} Rfe7 {[%emt 0:01:02]} 27. Rde2 {[%emt 0:01:44]} Qe8 {[%emt 0:02:12]} 28. Qf5 {[%emt 0:03:50]} Bh8 {[%emt 0:01:40]} 29. Qg4+ {[%emt 0:02:12]} Rg7 {[%emt 0:02:24]} 30. Qxf4 {[%emt 0:01:05]} Qh5 {[%emt 0:00:35]} 31. Qf5 {[%emt 0:03:31]} Qe8 {[%emt 0:01:20]} 32. Qh3 {[%emt 0:03:34]} Ree7 {[%emt 0:04:20]} 33. f4 {[%emt 0:00:28]} Qh5 {[%emt 0:00:17]} 34. Be4 {[%emt 0:02:35]} Bxe4 {[%emt 0:00:38]} 35. Rxe4 {[%emt 0:00:31]} d3 {[%emt 0:00:01]} 36. Qxd3 {[%emt 0:01:46]} Qxh4 {[%emt 0:00:09]} 37. f5 {[%emt 0:00:25]} Qg5 {[%emt 0:00:13]} 38. Qf3 {[%emt 0:00:22]} Ref7 {[%emt 0:01:55]} 39. Rf4 {[%emt 0:00:42]} Kh7 {[%emt 0:02:09]} 40. e6 {[%emt 0:00:28]} Rf8 {[%emt 0:00:43]} 41. f6 {[%emt 0:11:15]} Rg6 {[%emt 0:09:36]} 42. e7 {[%emt 0:07:00]} Rfxf6 {[%emt 0:01:24]} 43. Rxf6 {[%emt 0:01:59]} 1-0